fUSD/lending_fUSD_20241119
["ID","MTS","AMOUNT","RATE_DAILY","PERIOD"]
[342707051,1732054238245,-500.0,0.00056164,3]
[342707052,1732054238256,-4233.19,0.00056164,120]
[342707054,1732054238265,-500.0,0.00056164,120]
[342707055,1732054238275,-581.57370202,0.00056164,120]
[342707056,1732054238284,-2086.0,0.00056164,120]
[342707057,1732054238293,-500.0,0.00056164,120]
[342707058,1732054238302,-500.0,0.00056164,120]
[342707059,1732054238311,-500.0,0.00056164,120]
[342707060,1732054238321,-945.53,0.00056164,60]
[342707061,1732054238330,-500.0,0.00056438,120]
[342707062,1732054238339,-500.0,0.00056438,120]
[342707063,1732054238349,-500.0,0.00056438,120]
[342707064,1732054238358,-500.0,0.00056438,120]
[342707065,1732054238367,-500.0,0.00056438,120]
[342707066,1732054238376,-500.0,0.00056438,120]
[342707067,1732054238385,-565.35,0.00056438,120]
[342707068,1732054238394,-500.0,0.00056438,120]
[342707069,1732054238403,-500.0,0.00056438,120]
[342707070,1732054238413,-500.0,0.00056438,120]
[342707071,1732054238422,-500.0,0.00056438,120]
[342707072,1732054238431,-500.0,0.00056438,120]
[342707073,1732054238441,-517.23,0.00056438,120]
[342707074,1732054238449,-500.0,0.00056438,120]
[342707075,1732054238459,-780.67,0.00056438,120]
[342707076,1732054238468,-500.0,0.00056438,120]
[342707077,1732054238478,-500.0,0.00056438,120]
[342707078,1732054238487,-500.0,0.00056438,3]
[342707079,1732054238496,-4233.19,0.00056438,120]
[342707080,1732054238508,-500.0,0.00056438,120]
[342707081,1732054238519,-2086.0,0.00056438,120]
[342707082,1732054238529,-500.0,0.00056438,120]
[342707083,1732054238538,-500.0,0.00056438,120]
[342707084,1732054238548,-500.0,0.00056438,120]
[342707085,1732054238558,-945.53,0.00056438,60]
[342707086,1732054238567,-1049.0,0.00056556,30]
[342707087,1732054238577,-211.27450731,0.00056688,120]
[342707088,1732054238586,-500.0,0.00056712,120]
[342707089,1732054238596,-500.0,0.00056712,120]
[342707090,1732054238606,-500.0,0.00056712,120]
[342707091,1732054238615,-500.0,0.00056712,120]
[342707092,1732054238625,-500.0,0.00056712,120]
[342707093,1732054238638,-500.0,0.00056712,120]
[342707094,1732054238648,-500.0,0.00056712,120]
[342707095,1732054238658,-500.0,0.00056712,120]
[342707096,1732054238667,-500.0,0.00056712,120]
[342707097,1732054238677,-500.0,0.00056712,120]
[342707099,1732054238686,-500.0,0.00056712,120]
[342707101,1732054238696,-517.23,0.00056712,120]
[342707102,1732054238705,-421.27277495,0.00056712,120]
[342707103,1732054238716,-780.67,0.00056712,120]
[342707104,1732054238727,-500.0,0.00056712,120]
[342707105,1732054238737,-500.0,0.00056712,120]
[342707106,1732054238746,-500.0,0.00056712,3]
[342707107,1732054238758,-4233.19,0.00056712,120]
[342707108,1732054238767,-500.0,0.00056712,120]
[342707109,1732054238776,-2086.0,0.00056712,120]
[342707110,1732054238786,-500.0,0.00056712,120]
[342707111,1732054238795,-244.07629803,0.00056712,120]
[342707112,1732054238805,-500.0,0.00056712,120]
[342707113,1732054238815,-945.53,0.00056712,60]
[342707114,1732054238824,-272.96,0.00056776,120]
[342707115,1732054238834,-338.01,0.00056812,2]
[342707116,1732054238843,-587.6317731,0.00056986,120]
[342707117,1732054238853,-565.36,0.00056986,120]
[342707118,1732054238862,-500.0,0.00056986,120]
[342707119,1732054238871,-500.0,0.00056986,120]
[342707120,1732054238881,-500.0,0.00056986,120]
[342707122,1732054238891,-500.0,0.00056986,120]
[342707123,1732054238901,-500.0,0.00056986,120]
[342707125,1732054238910,-500.0,0.00056986,120]
[342707128,1732054238920,-500.0,0.00056986,120]
[342707130,1732054238930,-517.23,0.00056986,120]
[342707132,1732054238939,-780.67,0.00056986,120]
[342707133,1732054238949,-500.0,0.00056986,120]
[342707135,1732054238958,-500.0,0.00056986,120]
[342707136,1732054238967,-500.0,0.00056986,3]
[342707137,1732054238977,-4233.19,0.00056986,120]
[342707138,1732054238987,-365.34332725,0.00056986,120]
[342707139,1732054238996,-2086.0,0.00056986,120]
[342707140,1732054239007,-500.0,0.00056986,120]
[342707141,1732054239017,-358.463792,0.00056986,120]
[342707142,1732054239027,-945.53,0.00056986,60]
[342707143,1732054239036,-50000.0,0.00057,37]
[342707144,1732054239046,-50000.0,0.00057,47]
[342707145,1732054239055,-50000.0,0.00057,57]
[342707146,1732054239065,-1000.0,0.00057,2]
[342707147,1732054239074,-10000.0,0.00057,120]
[342707148,1732054239084,-1049.0,0.00057128,30]
[342707149,1732054239094,-1000.0,0.0005715,2]
[342707150,1732054239103,-309.33,0.0005726,120]
[342707151,1732054239113,-500.0,0.0005726,120]
[342707152,1732054239123,-500.0,0.0005726,120]
[342707153,1732054239133,-492.31682224,0.0005726,120]
[342707154,1732054239143,-500.0,0.0005726,120]
[342707155,1732054239153,-500.0,0.0005726,120]
[342707156,1732054239163,-500.0,0.0005726,120]
[342707157,1732054239173,-517.23,0.0005726,120]
[342707158,1732054239183,-780.67,0.0005726,120]
[342707159,1732054239193,-500.0,0.0005726,120]
[342707160,1732054239202,-500.0,0.0005726,120]
[342707161,1732054239212,-500.0,0.0005726,3]
[342707162,1732054239222,-4233.19,0.0005726,120]
[342707163,1732054239232,-2086.0,0.0005726,120]
[342707164,1732054239242,-500.0,0.0005726,120]
[342707165,1732054239252,-945.53,0.0005726,60]
[342707166,1732054239263,-150.0,0.00057292,120]
[342707167,1732054239274,-1000.0,0.000575,2]
[342707168,1732054239283,-1570.51183461,0.000575,90]
[342707169,1732054239293,-500.0,0.00057534,120]
[342707170,1732054239303,-500.0,0.00057534,120]
[342707171,1732054239313,-500.0,0.00057534,120]
[342707172,1732054239324,-433.37550143,0.00057534,120]
[342707173,1732054239334,-500.0,0.00057534,120]
[342707174,1732054239344,-517.23,0.00057534,120]
[342707175,1732054239354,-780.67,0.00057534,120]
[342707176,1732054239363,-500.0,0.00057534,120]
[342707177,1732054239373,-500.0,0.00057534,120]
[342707178,1732054239382,-500.0,0.00057534,3]
[342707179,1732054239392,-4233.19,0.00057534,120]
[342707180,1732054239402,-2086.0,0.00057534,120]
[342707181,1732054239412,-626.32668479,0.00057534,120]
[342707182,1732054239422,-945.53,0.00057534,60]
[342707183,1732054239432,-1647.75853554,0.000576,36]
[342707184,1732054239442,-800.0,0.00057684,46]
[342707185,1732054239452,-800.0,0.00057684,46]
[342707186,1732054239461,-800.0,0.00057684,46]
[342707187,1732054239471,-800.0,0.00057684,46]
[342707188,1732054239481,-800.0,0.00057684,46]
[342707189,1732054239490,-800.0,0.00057684,56]
[342707190,1732054239501,-1049.0,0.00057699,30]
[342707191,1732054239513,-1500.0,0.00057807,30]
[342707192,1732054239522,-1000.0,0.00057807,120]
[342707193,1732054239532,-500.0,0.00057808,120]
[342707194,1732054239542,-487.18,0.00057808,120]
[342707195,1732054239551,-500.0,0.00057808,120]
[342707196,1732054239561,-529.82750457,0.00057808,120]
[342707197,1732054239571,-517.23,0.00057808,120]
[342707198,1732054239580,-780.67,0.00057808,120]
[342707199,1732054239590,-616.28,0.00057808,120]
[342707200,1732054239599,-500.0,0.00057808,120]
[342707201,1732054239608,-500.0,0.00057808,3]
[342707202,1732054239618,-4233.19,0.00057808,120]
[342707203,1732054239630,-2086.0,0.00057808,120]
[342707204,1732054239640,-945.53,0.00057808,60]
[342707205,1732054239651,-1614.0,0.00057901,25]
[342707206,1732054239661,-50000.0,0.00058,38]
[342707207,1732054239670,-50000.0,0.00058,48]
[342707208,1732054239681,-50000.0,0.00058,58]
[342707209,1732054239691,-250.0,0.00058,30]
[342707210,1732054239702,-1743.37797672,0.00058,120]
[342707211,1732054239712,-287.33999342,0.00058082,120]
[342707212,1732054239722,-500.0,0.00058082,120]
[342707213,1732054239733,-517.23,0.00058082,120]
[342707214,1732054239742,-780.67,0.00058082,120]
[342707215,1732054239751,-500.0,0.00058082,120]
[342707216,1732054239761,-500.0,0.00058082,3]
[342707217,1732054239771,-4233.19,0.00058082,120]
[342707218,1732054239781,-2086.0,0.00058082,120]
[342707219,1732054239790,-945.53,0.00058082,60]
[342707220,1732054239800,-157.54,0.00058191,120]
[342707221,1732054239810,-1000.0,0.0005825,2]
[342707222,1732054239819,-1049.0,0.0005827,30]
[342707223,1732054239828,-500.0,0.00058356,120]
[342707224,1732054239839,-517.23,0.00058356,120]
[342707225,1732054239848,-780.67,0.00058356,120]
[342707226,1732054239858,-500.0,0.00058356,120]
[342707227,1732054239868,-500.0,0.00058356,3]
[342707228,1732054239878,-4233.19,0.00058356,120]
[342707229,1732054239888,-2086.0,0.00058356,120]
[342707230,1732054239898,-945.53,0.00058356,60]
[342707231,1732054239908,-750.0,0.000584,30]
[342707232,1732054239918,-1000.0,0.000585,2]
[342707233,1732054239928,-500.0,0.0005863,120]
[342707234,1732054239938,-517.23,0.0005863,120]
[342707235,1732054239948,-780.67,0.0005863,120]
[342707237,1732054239958,-500.0,0.0005863,120]
[342707238,1732054239967,-500.0,0.0005863,3]
[342707239,1732054239977,-4233.19,0.0005863,120]
[342707240,1732054239987,-2086.0,0.0005863,120]
[342707241,1732054239996,-945.53,0.0005863,60]
[342707242,1732054240008,-1647.7585355,0.0005865,37]
[342707243,1732054240018,-236.06,0.00058839,120]
[342707244,1732054240027,-1049.0,0.00058842,30]
[342707245,1732054240036,-469.76674289,0.00058904,120]
[342707246,1732054240046,-517.23,0.00058904,120]
[342707247,1732054240056,-780.67,0.00058904,120]
[342707248,1732054240065,-308.93,0.00058904,120]
[342707249,1732054240075,-500.0,0.00058904,3]
[342707250,1732054240085,-4233.19,0.00058904,120]
[342707251,1732054240094,-2086.0,0.00058904,120]
[342707252,1732054240105,-945.53,0.00058904,60]
[342707253,1732054240114,-50000.0,0.00059,39]
[342707254,1732054240123,-50000.0,0.00059,49]
[342707255,1732054240134,-50000.0,0.00059,59]
[342707256,1732054240145,-1000.0,0.00059,2]
[342707257,1732054240155,-10000.0,0.00059,120]
[342707258,1732054240165,-290.43808759,0.00059,7]
[342707259,1732054240175,-510.89422316,0.0005901,2]
[342707260,1732054240185,-338.01,0.00059075,2]
[342707261,1732054240196,-517.23,0.00059178,120]
[342707262,1732054240206,-780.67,0.00059178,120]
[342707263,1732054240216,-500.0,0.00059178,3]
[342707264,1732054240226,-4233.19,0.00059178,120]
[342707265,1732054240236,-2086.0,0.00059178,120]
[342707266,1732054240246,-945.53,0.00059178,60]
[342707267,1732054240256,-303.3,0.00059187,120]
[342707268,1732054240267,-1300.0,0.00059202,120]
[342707269,1732054240276,-500.0,0.00059202,120]
[342707270,1732054240286,-800.0,0.00059202,120]
[342707271,1732054240296,-500.0,0.00059202,120]
[342707272,1732054240306,-1619.62092165,0.00059328,120]
[342707273,1732054240315,-37716.30411036,0.00059333,120]
[342707274,1732054240325,-3730.90808485,0.00059342,120]
[342707275,1732054240335,-1619.62092165,0.00059342,120]
[342707276,1732054240345,-3730.90808485,0.00059343,120]
[342707277,1732054240355,-1499.12914425,0.00059346,120]
[342707278,1732054240365,-1499.12914425,0.00059347,120]
[342707279,1732054240379,-3981.20245378,0.00059353,120]
[342707280,1732054240390,-3981.20245378,0.00059353,120]
[342707281,1732054240400,-3981.20245378,0.00059356,120]
[342707282,1732054240410,-1619.62092165,0.00059357,120]
[342707283,1732054240420,-1499.12914425,0.00059363,120]
[342707284,1732054240429,-1619.62092165,0.00059371,120]
[342707285,1732054240439,-37716.30411036,0.00059373,120]
[342707286,1732054240448,-37716.30411036,0.00059375,120]
[342707287,1732054240458,-1499.12914425,0.00059404,120]
[342707288,1732054240468,-3981.20245378,0.00059409,120]
[342707289,1732054240478,-1187.58935433,0.00059419,120]
[342707294,1732054240690,-432.03156732,0.00059419,120]
[342707295,1732054240700,-3981.20245378,0.00059428,120]
[342707296,1732054240710,-37716.30411036,0.00059443,120]
[342707297,1732054240720,-20000.0,0.00059443,4]
[342707298,1732054240730,-1619.62092165,0.00059451,120]
[342707299,1732054240741,-517.23,0.00059452,120]
[342707300,1732054240757,-780.67,0.00059452,120]
[342707301,1732054240772,-500.0,0.00059452,3]
[342707302,1732054240781,-4233.19,0.00059452,120]
[342707303,1732054240790,-2086.0,0.00059452,120]
[342707304,1732054240800,-945.53,0.00059452,60]
[342707305,1732054240809,-1499.12914425,0.00059456,120]
[342707306,1732054240819,-1499.12914425,0.00059473,120]
[342707307,1732054240828,-1300.0,0.00059476,120]
[342707308,1732054240838,-800.0,0.00059476,120]
[342707309,1732054240847,-500.0,0.00059476,120]
[342707310,1732054240856,-3730.90808485,0.00059483,120]
[342707311,1732054240865,-37716.30411036,0.0005949,120]
[342707312,1732054240875,-37716.30411036,0.00059497,120]
[342707313,1732054240885,-3000.0,0.00059498,101]
[342707314,1732054240896,-3981.20245378,0.00059498,120]
[342707315,1732054240907,-2200.0,0.000595,30]
[342707316,1732054240917,-150.0,0.000595,120]
[342707317,1732054240926,-1500.0,0.000595,120]
[342707318,1732054240936,-1500.0,0.000595,120]
[342707319,1732054240946,-1500.0,0.000595,120]
[342707320,1732054240956,-1500.0,0.000595,120]
[342707321,1732054240965,-1500.0,0.000595,120]
[342707322,1732054240974,-1500.0,0.000595,120]
[342707323,1732054240984,-1500.0,0.000595,120]
[342707324,1732054240994,-1500.0,0.000595,120]
[342707325,1732054241004,-1500.0,0.000595,120]
[342707326,1732054241015,-1500.0,0.000595,120]
[342707327,1732054241024,-1500.0,0.000595,120]
[342707328,1732054241036,-1500.0,0.000595,120]
[342707329,1732054241045,-1500.0,0.000595,120]
[342707330,1732054241055,-1500.0,0.000595,120]
[342707331,1732054241065,-1500.0,0.000595,120]
[342707332,1732054241074,-1000.0,0.00059533,120]
[342707333,1732054241084,-197.70971295,0.0005955,14]
[342707334,1732054241094,-1000.0,0.00059599,120]
[342707335,1732054241104,-316711.38196434,0.000596,30]
[342707336,1732054241114,-500000.0,0.000596,10]
[342707337,1732054241124,-500.0,0.000596,30]
[342707338,1732054241135,-1583.4925549,0.00059618,2]
[342707339,1732054241146,-10925.6582852,0.00059618,2]
[342707340,1732054241157,-1501.0834625,0.00059618,2]
[342707341,1732054241168,-869.7729537,0.00059618,2]
[342707342,1732054241179,-1647.7585355,0.000597,38]
[342707343,1732054241190,-5552.37205876,0.00059724,120]
[342707344,1732054241200,-517.23,0.00059726,120]
[342707345,1732054241211,-780.67,0.00059726,120]
[342707346,1732054241223,-500.0,0.00059726,3]
[342707347,1732054241233,-4233.19,0.00059726,120]
[342707348,1732054241243,-2086.0,0.00059726,120]
[342707349,1732054241254,-945.53,0.00059726,60]
[342707350,1732054241269,-1300.0,0.0005975,120]
[342707351,1732054241279,-500.0,0.0005975,120]
[342707352,1732054241290,-800.0,0.0005975,120]
[342707353,1732054241299,-500.0,0.0005975,120]
[342707354,1732054241308,-1258.869,0.0005975,119]
[342707355,1732054241318,-15000.0,0.0005978,30]
[342707356,1732054241328,-250000.0,0.000598,120]
[342707357,1732054241338,-250000.0,0.000598,120]
[342707358,1732054241348,-15000.0,0.0005986,30]
[342707359,1732054241358,-1070.64238535,0.00059893,120]
[342707360,1732054241368,-299.92347592,0.00059899,12]
[342707361,1732054241378,-412.67462366,0.00059899,2]
[342707362,1732054241387,-1407.07018853,0.000599,120]
[342707363,1732054241397,-10000.0,0.000599,120]
[342707364,1732054241406,-417.0,0.00059985,120]
[342707365,1732054241416,-992981.49158314,0.00059985,120]
[342707366,1732054241429,-65785.493141,0.00059985,120]
[342707367,1732054241440,-923.26,0.00059985,120]
[342707368,1732054241451,-7184.88728307,0.00059985,120]
[342707369,1732054241562,-19283.70594338,0.00059985,120]
[342707370,1732054241572,-517.23,0.00059999,120]
[342707371,1732054241581,-780.67,0.00059999,120]
[342707372,1732054241591,-500.0,0.00059999,3]
[342707373,1732054241601,-4233.19,0.00059999,120]
[342707374,1732054241610,-2086.0,0.00059999,120]
[342707375,1732054241620,-945.53,0.00059999,60]
[342707376,1732054241630,-50000.0,0.0006,60]
[342707377,1732054241643,-50000.0,0.0006,50]
[342707378,1732054241651,-50000.0,0.0006,40]
[342707379,1732054241661,-2760.28299624,0.0006,120]
[342707380,1732054241671,-50000.0,0.0006,120]
[342707381,1732054241681,-399.999999,0.0006,7]
[342707382,1732054241691,-554959.96864716,0.0006,120]
[342707383,1732054241950,-7740.10009487,0.0006,120]
[342707384,1732054242170,-362.694,0.000537,2]
[342707385,1732054242182,-1847.7882,0.000537,2]
[342707386,1732054242193,-289.5178,0.000537,2]
[342707387,1732054242203,-199.11,0.00054784,10]
[342707388,1732054242212,-500.0,0.00054794,120]
[342707389,1732054242222,-500.0,0.00054794,120]
[342707390,1732054242231,-555.71105078,0.00054794,120]
[342707391,1732054242240,-500.0,0.00054794,120]
[342707392,1732054242249,-500.0,0.00054794,120]
[342707393,1732054242261,-500.0,0.00055068,120]
[342707394,1732054242270,-354.52761953,0.00055068,120]
[342707395,1732054242279,-363394.06429736,0.0006,120]
[342707396,1732054242290,-58749.441305,0.0006,120]
[342707397,1732054242302,-5444.17015251,0.0006,120]
[342707398,1732054242443,-9712.2555031,0.0006,120]
[342707399,1732054242453,-818.0,0.0006,120]
[342707400,1732054242462,-1007.31496606,0.0006,30]
[342707401,1732054242471,-51299.409501,0.0006,120]
[342707402,1732054242482,-350723.25868562,0.0006,120]
[342707403,1732054242491,-500.0,0.0006,120]
[342707404,1732054242500,-21736.13313951,0.0006,120]
[342707405,1732054242513,-671.28360164,0.0006,120]
[342707406,1732054242522,-4000.0,0.0006,2]
[342707407,1732054242531,-24999.999999,0.0006,30]
[342707408,1732054242541,-310.40020252,0.0006,120]
[342707409,1732054242551,-1131.96708663,0.0006,30]
[342707410,1732054242560,-57281.25255071,0.0006,30]
[342707411,1732054242570,-536.60911949,0.0006,120]
[342707412,1732054242579,-17555.63099179,0.0006,120]
[342707413,1732054242588,-23729.462017,0.0006,120]
[342707414,1732054242598,-150.0,0.0006,30]
[342707415,1732054242607,-748.28103501,0.0006,120]
[342707416,1732054242616,-453.82468724,0.0006,60]
[342707417,1732054242626,-8187.29340599,0.0006,120]
[342707418,1732054242635,-8125.87528842,0.0006,120]
[342707419,1732054242647,-4234.59406895,0.0006,120]
[342707420,1732054242656,-151.0,0.0006,120]
[342707421,1732054242666,-200000.0,0.0006,100]
[342707422,1732054242675,-14455.58328127,0.0006,120]
[342707423,1732054242686,-8157.7555199,0.0006,109]
[342707424,1732054242695,-900.0,0.0006,61]
[342707425,1732054242703,-250.0,0.0006,30]
[342707426,1732054242715,-1300.0,0.00060024,120]
[342707427,1732054242725,-800.0,0.00060024,120]
[342707428,1732054242734,-500.0,0.00060024,120]
[342707429,1732054242745,-157.18,0.00060159,120]
[342707430,1732054242755,-200.0,0.000602,120]
[342707431,1732054242766,-150.0,0.000602,120]
[342707432,1732054242776,-517.23,0.00060273,120]
[342707433,1732054242785,-780.67,0.00060273,120]
[342707434,1732054242794,-440.24999999,0.00060273,3]
[342707435,1732054242804,-4233.19,0.00060273,120]
[342707436,1732054242814,-2086.0,0.00060273,120]
[342707437,1732054242823,-945.53,0.00060273,60]
[342707438,1732054242832,-3068.02,0.00060274,120]
[342707439,1732054242841,-500.0,0.00060298,120]
[342707440,1732054242850,-1300.0,0.00060298,120]
[342707441,1732054242859,-800.0,0.00060298,120]
[342707442,1732054242868,-500.0,0.00060298,120]
[342707443,1732054242878,-200.0,0.000605,120]
[342707444,1732054242888,-517.23,0.00060547,120]
[342707445,1732054242897,-780.67,0.00060547,120]
[342707446,1732054242907,-4233.19,0.00060547,120]
[342707447,1732054242916,-2086.0,0.00060547,120]
[342707448,1732054242925,-945.53,0.00060547,60]
[342707449,1732054242935,-1300.0,0.00060572,120]
[342707450,1732054242945,-800.0,0.00060572,120]
[342707451,1732054242954,-163.735551,0.000607,120]
[342707452,1732054242964,-1647.7585355,0.0006075,40]
[342707453,1732054242973,-517.23,0.00060821,120]
[342707454,1732054242982,-780.67,0.00060821,120]
[342707455,1732054242992,-4233.19,0.00060821,120]
[342707456,1732054243001,-2086.0,0.00060821,120]
[342707457,1732054243011,-945.53,0.00060821,60]
[342707458,1732054243020,-500.0,0.00060846,120]
[342707459,1732054243030,-1300.0,0.00060846,120]
[342707460,1732054243039,-800.0,0.00060846,120]
[342707461,1732054243049,-500.0,0.00060846,120]
[342707462,1732054243059,-101261.05959782,0.0006098,120]
[342707463,1732054243068,-50000.0,0.00061,61]
[342707464,1732054243078,-156.96,0.00061,120]
[342707465,1732054243087,-50000.0,0.00061,120]
[342707466,1732054243097,-1000000.0,0.00061,120]
[342707467,1732054243108,-699999.0,0.00061,61]
[342707468,1732054243118,-50000.0,0.00061,120]
[342707469,1732054243127,-6443.2309413,0.00061,120]
[342707470,1732054243137,-900.0,0.00061,62]
[342707471,1732054243147,-151.0,0.00061,120]
[342707472,1732054243157,-151.0,0.00061,120]
[342707473,1732054243166,-151.0,0.00061,120]
[342707474,1732054243174,-151.0,0.00061,120]
[342707475,1732054243183,-151.0,0.00061,120]
[342707476,1732054243192,-260.180069,0.00061,120]
[342707477,1732054243201,-151.0,0.00061,120]
[342707478,1732054243211,-151.0,0.00061,120]
[342707479,1732054243222,-151.0,0.00061,120]
[342707480,1732054243232,-151.0,0.00061,120]
[342707481,1732054243243,-151.0,0.00061,120]
[342707482,1732054243251,-151.0,0.00061,120]
[342707483,1732054243262,-151.0,0.00061,120]
[342707484,1732054243270,-151.0,0.00061,120]
[342707486,1732054243279,-151.0,0.00061,120]
[342707487,1732054243289,-151.0,0.00061,120]
[342707488,1732054243298,-242.248796,0.00061,120]
[342707489,1732054243308,-242.248796,0.00061,120]
[342707490,1732054243318,-151.0,0.00061,120]
[342707491,1732054243328,-151.0,0.00061,120]
[342707492,1732054243338,-168.153943,0.00061,120]
[342707493,1732054243348,-151.0,0.00061,120]
[342707494,1732054243357,-151.0,0.00061,120]
[342707495,1732054243366,-151.0,0.00061,120]
[342707496,1732054243376,-151.0,0.00061,120]
[342707497,1732054243385,-151.0,0.00061,120]
[342707498,1732054243394,-151.0,0.00061,120]
[342707499,1732054243404,-151.0,0.00061,120]
[342707500,1732054243414,-151.0,0.00061,120]
[342707501,1732054243423,-178.680518,0.00061,120]
[342707502,1732054243433,-178.680518,0.00061,120]
[342707503,1732054243442,-151.0,0.00061,120]
[342707504,1732054243451,-154.022173,0.00061,120]
[342707505,1732054243460,-151.0,0.00061,120]
[342707506,1732054243469,-151.0,0.00061,120]
[342707507,1732054243479,-151.0,0.00061,120]
[342707508,1732054243488,-151.0,0.00061,120]
[342707509,1732054243498,-151.0,0.00061,120]
[342707510,1732054243508,-151.0,0.00061,120]
[342707511,1732054243519,-151.0,0.00061,120]
[342707512,1732054243528,-151.0,0.00061,120]
[342707513,1732054243538,-221.52824,0.00061,120]
[342707514,1732054243547,-221.52824,0.00061,120]
[342707515,1732054243557,-151.0,0.00061,120]
[342707516,1732054243565,-151.0,0.00061,120]
[342707517,1732054243575,-151.0,0.00061,120]
[342707518,1732054243584,-200.709497,0.00061,120]
[342707519,1732054243696,-327.559827,0.00061,120]
[342707520,1732054243710,-151.0,0.00061,120]
[342707521,1732054243719,-327.559827,0.00061,120]
[342707522,1732054243729,-177.903657,0.00061,120]
[342707523,1732054243739,-177.903657,0.00061,120]
[342707524,1732054243749,-151.0,0.00061,120]
[342707525,1732054243759,-151.0,0.00061,120]
[342707526,1732054243772,-422.673015,0.00061,120]
[342707527,1732054243782,-151.0,0.00061,120]
[342707528,1732054243791,-422.673015,0.00061,120]
[342707529,1732054243801,-151.0,0.00061,120]
[342707530,1732054243811,-151.0,0.00061,120]
[342707531,1732054243820,-2060.357101,0.00061,120]
[342707532,1732054243830,-2060.357101,0.00061,120]
[342707533,1732054243839,-151.0,0.00061,120]
[342707534,1732054243848,-151.0,0.00061,120]
[342707535,1732054243858,-2251.415364,0.00061,120]
[342707536,1732054243868,-151.0,0.00061,120]
[342707537,1732054243877,-2251.415364,0.00061,120]
[342707538,1732054243887,-151.0,0.00061,120]
[342707539,1732054243896,-5285.699344,0.00061,120]
[342707540,1732054243906,-5285.699344,0.00061,120]
[342707541,1732054243916,-155.30059,0.00061,120]
[342707542,1732054243925,-155.30059,0.00061,120]
[342707543,1732054243934,-517.36,0.00061095,120]
[342707544,1732054243944,-780.69345445,0.00061095,120]
[342707545,1732054243964,-4233.22832062,0.00061095,120]
[342707546,1732054243975,-2086.22867763,0.00061095,120]
[342707547,1732054243984,-945.72628559,0.00061095,60]
[342707548,1732054243994,-5167.2,0.0006121,117]
[342707549,1732054244004,-338.01,0.00061339,2]
[342707550,1732054244018,-12047.09887491,0.0006138,120]
[342707551,1732054244027,-1300.0,0.00061394,120]
[342707552,1732054244037,-800.0,0.00061394,120]
[342707553,1732054244047,-500.0,0.00061394,120]
[342707554,1732054244056,-602600.0,0.000614,120]
[342707555,1732054244066,-180903.07891326,0.000615,33]
[342707556,1732054244076,-41575.50045955,0.000615,61]
[342707557,1732054244086,-1000000.0,0.000615,120]
[342707558,1732054244096,-151.0,0.000615,120]
[342707559,1732054244105,-151.0,0.000615,120]
[342707560,1732054244115,-151.0,0.000615,7]
[342707561,1732054244125,-229.9,0.000615,120]
[342707562,1732054244135,-151.0,0.000615,120]
[342707563,1732054244146,-151.0,0.000615,120]
[342707564,1732054244156,-151.0,0.000615,120]
[342707565,1732054244167,-151.0,0.000615,120]
[342707566,1732054244177,-151.0,0.000615,120]